fUSD/lending_fUSD_20260225
["ID","MTS","AMOUNT","RATE_DAILY","PERIOD"]
[406636484,1772001040334,-239.17937334,8.997e-05,2]
[406636485,1772001040343,-500.0,8.997e-05,2]
[406636486,1772001040352,-490.11417997,8.997e-05,2]
[406636487,1772001040361,-500.0,8.997e-05,2]
[406636488,1772001040370,-5000.0,9e-05,2]
[406636489,1772001040379,-2836.9754,9.002e-05,2]
[406636490,1772001040388,-294645.768,9.002e-05,2]
[406636491,1772001040398,-167.31,9.108e-05,2]
[406636492,1772001040407,-250.0,9.167e-05,2]
[406636493,1772001040416,-101402.36643943,9.233e-05,2]
[406636494,1772001040426,-371.021768,9.5e-05,2]
[406636495,1772001040435,-193.0,9.596e-05,2]
[406636496,1772001040443,-5000.0,9.596e-05,2]
[406636497,1772001040452,-420.0,9.619e-05,2]
[406636498,1772001040461,-1680.0,9.619e-05,2]
[406636499,1772001040471,-255.0,9.649e-05,2]
[406636500,1772001040480,-167.31,9.867e-05,2]
[406636501,1772001040489,-500.0,0.0001,2]
[406636502,1772001040498,-151.0,0.0001,2]
[406636503,1772001040507,-151.0,0.0001,2]
[406636504,1772001040517,-151.0,0.0001,2]
[406636505,1772001040527,-151.0,0.0001,2]
[406636506,1772001040536,-151.0,0.0001,2]
[406636507,1772001040546,-151.0,0.0001,2]
[406636508,1772001040555,-151.0,0.0001,2]
[406636509,1772001040564,-151.0,0.0001,2]
[406636510,1772001040573,-151.0,0.0001,2]
[406636511,1772001040582,-151.0,0.0001,2]
[406636512,1772001040591,-151.0,0.0001,2]
[406636513,1772001040604,-151.0,0.0001,2]
[406636514,1772001040614,-176.95308782,0.0001,2]
[406636515,1772001040623,-199.84,0.0001,2]
[406636516,1772001040633,-236.09735505,0.0001,2]
[406636517,1772001040642,-1967.31764889,0.0001,2]
[406636518,1772001040651,-160.65,0.0001,2]
[406636519,1772001040660,-445.12424387,0.0001,2]
[406636520,1772001040669,-500.0,0.00010274,2]
[406636521,1772001040679,-199.84,0.00010274,2]
[406636522,1772001040688,-199.84,0.00010548,2]
[406636523,1772001040697,-500.0,0.00010573,2]
[406636524,1772001040706,-500.0,0.00010573,2]
[406636525,1772001040715,-500.36500922,0.00010573,2]
[406636526,1772001040725,-500.0,0.00010573,2]
[406636527,1772001040734,-307.71196301,0.00010573,2]
[406636528,1772001040743,-500.0,0.00010573,2]
[406636529,1772001040753,-500.0,0.00010573,2]
[406636530,1772001040762,-500.0,0.00010573,2]
[406636531,1772001040771,-500.0,0.00010573,2]
[406636532,1772001040781,-500.0,0.00010573,2]
[406636533,1772001040790,-500.0,0.00010573,2]
[406636534,1772001040799,-500.0,0.00010573,2]
[406636536,1772001040808,-500.0,0.00010573,2]
[406636537,1772001040817,-500.0,0.00010573,2]
[406636539,1772001040828,-500.66363066,0.00010573,2]
[406636540,1772001040840,-500.27479094,0.00010573,2]
[406636541,1772001040849,-500.0,0.00010573,2]
[406636542,1772001040858,-500.0,0.00010573,2]
[406636543,1772001040867,-170.35126783,0.00010573,2]
[406636544,1772001040878,-503.193534,0.00010573,2]
[406636545,1772001040888,-500.0,0.00010573,2]
[406636546,1772001040897,-500.0,0.00010573,2]
[406636547,1772001040907,-502.53914278,0.00010573,2]
[406636548,1772001040916,-500.0,0.00010573,2]
[406636549,1772001040925,-500.0,0.00010573,2]
[406636550,1772001040935,-500.0,0.00010573,2]
[406636551,1772001040944,-500.0,0.00010573,2]
[406636552,1772001040954,-500.0,0.00010573,2]
[406636553,1772001040963,-587.0,0.00010581,2]
[406636554,1772001040972,-2351.0,0.00010581,2]
[406636555,1772001040981,-433.0,0.00010613,2]
[406636556,1772001040994,-167.31,0.00010626,2]
[406636557,1772001041003,-199.84,0.00010822,2]
[406636558,1772001041012,-2023.25454737,0.00010859,2]
[406636559,1772001041022,-7272.65368888,0.000109,2]
[406636560,1772001041032,-402.31234094,0.000109,2]
[406636561,1772001041041,-402.31234089,0.000109,2]
[406636562,1772001041051,-7272.65368887,0.00010958,2]
[406636563,1772001041060,-150.0,0.00010959,2]
[406636564,1772001041070,-166.66,0.00010959,2]
[406636565,1772001041079,-250.0,0.00011011,2]
[406636566,1772001041088,-166.66,0.00011068,2]
[406636567,1772001041097,-199.88,0.00011096,2]
[406636568,1772001041106,-3698.45747375,0.00011099,2]
[406636569,1772001041116,-3698.45747371,0.00011099,2]
[406636570,1772001041127,-3698.45747371,0.00011099,2]
[406636571,1772001041138,-2521.86025932,0.00011099,2]
[406636572,1772001041146,-2521.86025931,0.00011099,2]
[406636573,1772001041155,-2521.86025931,0.00011099,2]
[406636574,1772001041164,-500.0,0.00011121,2]
[406636575,1772001041173,-940.69410624,0.00011121,2]
[406636576,1772001041183,-1096.18978779,0.00011121,2]
[406636577,1772001041192,-1000.0,0.00011121,2]
[406636578,1772001041201,-501.75629018,0.00011121,2]
[406636579,1772001041210,-500.0,0.00011121,2]
[406636580,1772001041219,-500.0,0.00011121,2]
[406636581,1772001041228,-514.56546432,0.00011121,2]
[406636582,1772001041237,-500.99420847,0.00011121,2]
[406636583,1772001041246,-455.37248611,0.00011121,2]
[406636584,1772001041255,-501.82753949,0.00011121,2]
[406636585,1772001041264,-1000.0,0.00011121,2]
[406636586,1772001041274,-500.0,0.00011121,2]
[406636587,1772001041283,-577.7227958,0.00011121,2]
[406636588,1772001041292,-500.0,0.00011121,2]
[406636589,1772001041301,-500.0,0.00011121,2]
[406636590,1772001041310,-500.0,0.00011121,2]
[406636591,1772001041319,-166.66,0.00011178,2]
[406636592,1772001041329,-160.67,0.00011208,2]
[406636593,1772001041338,-166.66,0.00011288,2]
[406636594,1772001041348,-167.31,0.00011385,2]
[406636595,1772001041358,-166.66,0.00011397,2]
[406636596,1772001041367,-402.31234089,0.00011473,2]
[406636597,1772001041381,-166.66,0.00011507,2]
[406636598,1772001041390,-600.0,0.00011591,2]
[406636599,1772001041399,-823.0,0.00011639,2]
[406636600,1772001041409,-3166.0,0.00011639,2]
[406636601,1772001041418,-500.0,0.00011668,2]
[406636602,1772001041428,-1500.0,0.00011668,2]
[406636603,1772001041438,-419.0,0.00011675,2]
[406636604,1772001041447,-3698.45747371,0.00011768,2]
[406636605,1772001041456,-2521.86025931,0.00011835,2]
[406636606,1772001041465,-7272.65368887,0.00012115,2]
[406636607,1772001041475,-167.31,0.00012145,2]
[406636608,1772001041484,-233.84,0.00012158,2]
[406636609,1772001041494,-2000.0,0.00012216,2]
[406636610,1772001041504,-300.0,0.00012228,4]
[406636611,1772001041513,-3284.02491611,0.00012704,2]
[406636612,1772001041523,-402.31234089,0.00012758,2]
[406636613,1772001041533,-2500.0,0.00012764,2]
[406636614,1772001041542,-3698.45747371,0.0001279,2]
[406636615,1772001041552,-1152.0,0.00012803,2]
[406636616,1772001041562,-2521.86025931,0.00012846,2]
[406636617,1772001041571,-1600.0,0.00012869,2]
[406636618,1772001041580,-9999.99,0.00012893,2]
[406636619,1772001041590,-167.31,0.00012904,2]
[406636620,1772001041600,-5367.58631391,0.0001305,2]
[406636621,1772001041609,-2183.52,0.00013188,2]
[406636622,1772001041619,-7272.65368887,0.00013272,2]
[406636623,1772001041632,-236.09735505,0.00013303,2]
[406636624,1772001041642,-3000.0,0.00013312,2]
[406636625,1772001041652,-1000.0,0.000135,2]
[406636626,1772001041661,-14928.40764489,0.0001358,2]
[406636627,1772001041671,-167.31,0.00013663,2]
[406636628,1772001041680,-500.0,0.00013698,2]
[406636629,1772001041689,-500.0,0.00013698,2]
[406636630,1772001041698,-500.0,0.00013698,2]
[406636631,1772001041708,-500.0,0.00013698,2]
[406636632,1772001041717,-500.0,0.00013698,2]
[406636633,1772001041726,-500.0,0.00013698,2]
[406636634,1772001041735,-500.0,0.00013698,2]
[406636635,1772001041744,-476.47320889,0.00013698,2]
[406636636,1772001041754,-500.0,0.00013698,2]
[406636637,1772001041763,-261.64372905,0.00013698,2]
[406636638,1772001041775,-500.0,0.00013698,2]
[406636639,1772001041784,-500.0,0.00013698,2]
[406636640,1772001041793,-500.0,0.00013698,2]
[406636641,1772001041802,-500.0,0.00013698,2]
[406636642,1772001041811,-500.0,0.00013698,2]
[406636643,1772001041820,-500.0,0.00013698,2]
[406636644,1772001041830,-500.0,0.00013698,2]
[406636645,1772001041843,-636.13115332,0.00013698,2]
[406636646,1772001041852,-3698.45747371,0.00013812,2]
[406636647,1772001041862,-2521.86025931,0.00013856,2]
[406636648,1772001041873,-2500.0,0.0001386,2]
[406636649,1772001041882,-402.31234089,0.00014044,2]
[406636650,1772001041892,-173.91437885,0.00014076,2]
[406636651,1772001041901,-1613.0,0.00014084,2]
[406636652,1772001041913,-2023.25454737,0.0001438,2]
[406636653,1772001041922,-7272.65368887,0.00014429,2]
[406636654,1772001041930,-1600.0,0.00014477,2]
[406636655,1772001041940,-3698.45747371,0.00014834,2]
[406636656,1772001041949,-457.82,0.0001485,2]
[406636657,1772001041959,-2521.86025931,0.00014867,2]
[406636658,1772001041968,-457.82,0.00014956,2]
[406636659,1772001041978,-1982.35241964,0.00015,7]
[406636660,1772001041987,-2642.79475098,0.00015,14]
[406636661,1772001041996,-250.0,0.00015,2]
[406636662,1772001042005,-457.82,0.00015062,2]
[406636663,1772001042014,-823.45,0.00015068,2]
[406636664,1772001042023,-457.82,0.00015168,2]
[406636665,1772001042032,-457.82,0.00015274,2]
[406636666,1772001042042,-3284.02491611,0.00015302,2]
[406636667,1772001042051,-402.31234089,0.00015329,2]
[406636668,1772001042061,-457.82,0.0001538,2]
[406636669,1772001042070,-300.0,0.0001542,4]
[406636670,1772001042079,-457.82,0.00015486,2]
[406636671,1772001042088,-2258.0,0.00015492,2]
[406636672,1772001042097,-7272.65368887,0.00015586,2]
[406636673,1772001042106,-457.86295333,0.00015592,2]
[406636674,1772001042115,-8906.11,0.00015625,2]
[406636675,1772001042125,-150.0,0.00015851,7]
[406636676,1772001042134,-3698.45747371,0.00015856,2]
[406636677,1772001042144,-2521.86025931,0.00015878,2]
[406636678,1772001042153,-1600.0,0.00016086,2]
[406636679,1772001042165,-5000.00703108,0.000162,5]
[406636680,1772001042174,-1000.87,0.0001643,2]
[406636681,1772001042183,-823.45,0.00016438,2]
[406636682,1772001042192,-402.31234089,0.00016615,2]
[406636683,1772001042201,-7272.65368887,0.00016743,2]
[406636684,1772001042211,-1500.0,0.00016874,2]
[406636685,1772001042220,-3698.45747371,0.00016878,2]
[406636686,1772001042229,-2521.86025931,0.00016889,2]
[406636687,1772001042238,-1277.0,0.00016912,2]
[406636688,1772001042247,-150.0,0.00016912,2]
[406636689,1772001042257,-1210.0,0.00016912,2]
[406636690,1772001042267,-920.0,0.00016912,2]
[406636691,1772001042277,-5982.0,0.00016912,2]
[406636692,1772001042288,-3497.0,0.00016912,2]
[406636693,1772001042298,-2456.0,0.0001698,2]
[406636694,1772001042308,-32158.97035652,0.00017,2]
[406636695,1772001042317,-160.70385615,0.00017,2]
[406636696,1772001042328,-300.0,0.00017,2]
[406636697,1772001042337,-3162.0,0.00017041,2]
[406636698,1772001042347,-482.68275809,0.00017396,2]
[406636699,1772001042356,-482.68275809,0.00017396,2]
[406636700,1772001042365,-482.68275809,0.00017396,2]
[406636701,1772001042374,-482.68275809,0.00017396,2]
[406636702,1772001042383,-482.68275809,0.00017396,2]
[406636703,1772001042393,-482.68275809,0.00017396,2]
[406636704,1772001042402,-482.68275809,0.00017396,2]
[406636705,1772001042411,-482.68275809,0.00017396,2]
[406636706,1772001042420,-482.68275809,0.00017396,2]
[406636707,1772001042430,-482.68275809,0.00017396,2]
[406636708,1772001042439,-482.68275809,0.00017396,2]
[406636709,1772001042448,-482.68275809,0.00017396,2]
[406636710,1772001042457,-482.68275809,0.00017396,2]
[406636711,1772001042466,-482.68275809,0.00017396,2]
[406636712,1772001042475,-482.68275809,0.00017396,2]
[406636713,1772001042484,-482.68275809,0.00017396,2]
[406636714,1772001042494,-482.68275809,0.00017396,2]
[406636715,1772001042503,-482.68275809,0.00017396,2]
[406636716,1772001042513,-482.68275805,0.00017396,2]
[406636717,1772001042522,-1990.43187338,0.0001764,2]
[406636718,1772001042531,-1600.0,0.00017694,2]
[406636719,1772001042540,-10000.0,0.000178,2]
[406636720,1772001042550,-604.33350197,0.00017808,2]
[406636721,1772001042559,-604.33350197,0.00017808,2]
[406636722,1772001042569,-604.33350197,0.00017808,2]
[406636723,1772001042579,-604.33350197,0.00017808,2]
[406636724,1772001042588,-604.33350197,0.00017808,2]
[406636725,1772001042597,-604.33350197,0.00017808,2]
[406636726,1772001042607,-604.33350197,0.00017808,2]
[406636727,1772001042616,-604.33350197,0.00017808,2]
[406636728,1772001042625,-604.33350197,0.00017808,2]
[406636729,1772001042635,-604.33350197,0.00017808,2]
[406636730,1772001042644,-604.33350197,0.00017808,2]
[406636731,1772001042654,-604.33350197,0.00017808,2]
[406636732,1772001042663,-604.33350197,0.00017808,2]
[406636733,1772001042672,-604.33350197,0.00017808,2]
[406636734,1772001042682,-800.0,0.00017808,2]
[406636735,1772001042692,-1603.68502,0.0001782,2]
[406636736,1772001042704,-1603.68502,0.0001782,2]
[406636737,1772001042713,-25000.0,0.00017891,3]
[406636738,1772001042723,-173.91437885,0.00017891,3]
[406636739,1772001042732,-7272.65368887,0.000179,2]
[406636740,1772001042741,-25000.0,0.000179,3]
[406636741,1772001042750,-402.31234089,0.000179,2]
[406636743,1772001042759,-25000.0,0.000179,3]
[406636745,1772001042768,-2521.86025931,0.000179,2]
[406636747,1772001042777,-236.09735505,0.000179,2]
[406636748,1772001042786,-2240.7232043,0.000179,3]
[406636749,1772001042796,-2023.25454737,0.000179,2]
[406636750,1772001042804,-3284.02491611,0.000179,2]
[406636751,1772001042813,-7883.0,0.000179,2]
[406636752,1772001042823,-48504.8470472,0.00017979,2]
[406636753,1772001042836,-3672.4135934,0.00017979,2]
[406636754,1772001042845,-228347.7904259,0.00017979,2]
[406636755,1772001042855,-445.12424387,0.0001799,2]
[406636756,1772001042864,-445.12424387,0.0001799,2]
[406636757,1772001042875,-155.437,0.00017999,2]
[406636758,1772001042884,-300.0,0.00017999,2]
[406636759,1772001042893,-300.0,0.00017999,2]
[406636760,1772001042904,-666.0,0.00017999,2]
[406636761,1772001042913,-300.0,0.00017999,2]
[406636762,1772001042922,-666.0,0.00017999,2]
[406636763,1772001042932,-300.0,0.00017999,2]
[406636764,1772001042941,-300.0,0.00017999,2]
[406636765,1772001042952,-666.0,0.00017999,2]
[406636766,1772001042961,-4392738.51879508,0.00018,2]
[406636770,1772001043036,500.0,0.00045955,120]
[406636774,1772001043087,500.0,0.00045955,120]
[406636778,1772001043119,500.0,0.00045955,120]
[406636782,1772001043152,500.0,0.00045955,120]
[406636783,1772001043184,500.0,0.00045955,120]
[406636784,1772001043216,500.0,0.00045955,120]
[406636785,1772001043248,500.0,0.00045955,120]
[406636786,1772001043410,500.0,0.00045955,120]
[406636787,1772001043451,500.0,0.00045955,120]
[406636788,1772001043499,500.0,0.00045955,120]
[406636789,1772001043532,500.0,0.00045955,120]
[406636790,1772001043563,500.0,0.00045955,120]
[406636791,1772001043596,565.86050267,0.00045955,120]
[406636792,1772001043628,176.95472746,0.00045955,120]
[406636793,1772001043663,500.0,0.00045955,120]
[406636794,1772001043694,500.0,0.00045955,120]
[406636799,1772001043738,500.0,0.00045955,120]
[406636803,1772001043774,500.0,0.00045955,120]
[406636808,1772001043813,500.0,0.00045955,120]
[406636813,1772001043853,500.0,0.00045955,120]
[406636818,1772001043886,500.0,0.00045955,120]
[406636822,1772001043920,500.0,0.00045955,120]
[406636827,1772001043957,1342.17,0.00045955,120]
[406636829,1772001043970,-3698.45747371,0.000179,2]
[406636831,1772001043981,-6305.586226,0.00018,2]
[406636836,1772001044015,500.0,0.00045955,120]
[406636840,1772001044051,1342.17,0.00045955,120]
[406636845,1772001044085,500.0,0.00045955,120]
[406636851,1772001044131,1342.17,0.00045955,120]
[406636855,1772001044164,500.0,0.00045955,120]
[406636860,1772001044201,1342.17,0.00045955,120]
[406636864,1772001044238,500.0,0.00045955,120]
[406636865,1772001044272,1342.17,0.00045955,120]
[406636874,1772001044451,500.0,0.00045955,120]
[406636882,1772001044520,1342.17,0.00045955,120]
[406636899,1772001044688,500.0,0.00045955,120]
[406636904,1772001044758,500.0,0.00045955,120]
[406636905,1772001044792,1342.17,0.00045955,120]
[406636912,1772001044926,500.0,0.00045955,120]
[406636915,1772001045015,1342.17,0.00045955,120]
[406636916,1772001045048,500.0,0.00045955,120]
[406636917,1772001045200,500.0,0.00045955,120]
[406636918,1772001045251,1342.17,0.00045955,120]
[406636919,1772001045282,500.0,0.00045955,120]
[406636920,1772001045443,382.82255624,0.00045955,120]
[406636921,1772001045491,1342.17,0.00045955,120]
[406636922,1772001045522,631.86191592,0.00045955,120]
[406636924,1772001045727,1342.17,0.00045955,120]
[406636925,1772001045959,1342.17,0.00045955,120]
[406636926,1772001046187,1342.17,0.00045955,120]
[406636927,1772001046332,-701.14641018,8.702e-05,2]
[406636928,1772001046429,1342.17,0.00045955,120]
[406636929,1772001046661,1342.17,0.00045955,120]
[406636930,1772001046906,1342.17,0.00045955,120]
[406636931,1772001047143,1342.17,0.00045955,120]
[406636932,1772001047218,500.0,0.00045955,120]
[406636933,1772001047411,258.01063446,0.00045955,120]
[406636934,1772001047446,500.0,0.00045955,120]
[406636935,1772001047477,1342.17,0.00045955,120]
[406636936,1772001047680,500.0,0.00045955,120]
[406636937,1772001047713,1342.17,0.00045955,120]
[406636938,1772001047911,1342.17,0.00045955,120]
[406636939,1772001047944,500.0,0.00045955,120]
[406636940,1772001048136,500.0,0.00045955,120]
[406636941,1772001048515,500.0,0.00045955,120]
[406636942,1772001048552,1342.17,0.00045955,120]
[406636943,1772001048600,383.38662211,0.00045955,120]
[406636944,1772001048735,1342.17,0.00045955,120]
[406636945,1772001049217,1342.17,0.00045955,120]
[406636946,1772001049447,1342.24839386,0.00045955,120]
[406636947,1772001049548,500.0,0.00045955,120]
[406636948,1772001049788,633.30107684,0.00045955,120]
[406636949,1772001054395,13160.45296592,0.00045955,120]
[406636950,1772001056078,500.0,0.00045955,120]
[406636951,1772001056309,507.96045407,0.00045955,120]
[406636952,1772001056800,166.33383887,0.00045955,120]
[406636953,1772001058035,500.0,0.00045955,120]
[406636954,1772001058264,500.0,0.00045955,120]
[406636955,1772001058498,500.0,0.00045955,120]
[406636956,1772001058863,500.0,0.00045955,120]
[406636957,1772001059008,500.0,0.00045955,120]
[406636958,1772001059284,500.0,0.00045955,120]
[406636959,1772001059520,500.0,0.00045955,120]
[406636960,1772001059788,500.0,0.00045955,120]
[406636961,1772001060016,500.0,0.00045955,120]
[406636962,1772001060266,500.0,0.00045955,120]
[406636963,1772001060497,500.0,0.00045955,120]
[406636964,1772001060750,500.0,0.00045955,120]
[406636965,1772001060993,500.0,0.00045955,120]
[406636966,1772001061245,500.0,0.00045955,120]
[406636967,1772001061500,500.0,0.00045955,120]
[406636968,1772001061740,500.0,0.00045955,120]
[406636969,1772001061975,500.0,0.00045955,120]
[406636970,1772001062212,500.0,0.00045955,120]
[406636971,1772001062489,500.0,0.00045955,120]
[406636972,1772001062744,252.7874933,0.00045955,120]
[406636973,1772001069046,261.2376233,0.00045955,120]
[406636974,1772001070082,500.0,0.00045955,120]
[406636975,1772001070315,500.0,0.00045955,120]
[406636976,1772001070543,500.0,0.00045955,120]
[406636977,1772001070774,500.0,0.00045955,120]
[406636978,1772001071030,646.7737132,0.00045955,120]
[406636979,1772001072969,500.0,0.00045955,120]
[406636980,1772001073210,500.0,0.00045955,120]
[406636981,1772001073469,500.0,0.00045955,120]
[406636982,1772001073706,500.0,0.00045955,120]
[406636983,1772001073954,500.0,0.00045955,120]
[406636984,1772001074195,500.0,0.00045955,120]
[406636985,1772001074425,500.0,0.00045955,120]
[406636986,1772001074823,500.0,0.00045955,120]
[406636987,1772001074882,500.0,0.00045955,120]
[406636988,1772001075114,500.0,0.00045955,120]
[406636989,1772001075394,500.0,0.00045955,120]
[406636990,1772001075643,500.0,0.00045955,120]
[406636991,1772001075902,500.0,0.00045955,120]
[406636992,1772001076139,500.0,0.00045955,120]
[406636993,1772001076405,500.0,0.00045955,120]
[406636994,1772001076630,500.0,0.00045955,120]
[406636995,1772001076868,500.0,0.00045955,120]
[406636996,1772001077078,500.0,0.00045955,120]
[406636997,1772001077425,196.3893393,0.00045955,120]
[406636998,1772001077459,500.0,0.00045955,120]
[406636999,1772001077679,500.0,0.00045955,120]
[406637000,1772001077935,258.36597539,0.00045955,120]
[406637001,1772001079736,500.0,0.00045955,120]
[406637002,1772001079976,500.0,0.00045955,120]
[406637003,1772001080204,500.0,0.00045955,120]
[406637004,1772001080457,500.0,0.00045955,120]
[406637005,1772001080688,500.0,0.00045955,120]
[406637006,1772001080930,500.0,0.00045955,120]
[406637007,1772001081172,500.0,0.00045955,120]
[406637008,1772001081403,500.0,0.00045955,120]
[406637009,1772001084240,500.0,0.00045955,120]
[406637010,1772001085659,500.0,0.00045955,120]
[406637011,1772001085899,500.0,0.00045955,120]
[406637012,1772001086170,500.0,0.00045955,120]
[406637013,1772001086401,500.0,0.00045955,120]
[406637014,1772001086632,500.0,0.00045955,120]
[406637015,1772001087211,500.0,0.00045955,120]
[406637016,1772001087452,500.0,0.00045955,120]
[406637017,1772001087733,500.0,0.00045955,120]
[406637018,1772001087981,500.0,0.00045955,120]
[406637019,1772001088210,500.0,0.00045955,120]
[406637020,1772001088440,500.0,0.00045955,120]
[406637021,1772001088704,500.0,0.00045955,120]
[406637022,1772001088743,500.0,0.00045955,120]
[406637023,1772001088928,500.0,0.00045955,120]
[406637024,1772001088966,500.0,0.00045955,120]
[406637025,1772001089163,520.39175485,0.00045955,120]
[406637026,1772001089544,500.0,0.00045955,120]
[406637027,1772001089635,522.64508888,0.00045955,120]
[406637028,1772001089793,500.0,0.00045955,120]
[406637029,1772001090120,500.0,0.00045955,120]
[406637030,1772001090364,500.0,0.00045955,120]
[406637031,1772001090594,500.0,0.00045955,120]
[406637032,1772001090840,500.0,0.00045955,120]
[406637033,1772001091069,500.0,0.00045955,120]
[406637034,1772001091310,500.0,0.00045955,120]
[406637035,1772001091538,500.0,0.00045955,120]
[406637036,1772001091780,247.19031103,0.00045955,120]
[406637038,1772001093674,500.0,0.00045955,30]
[406637039,1772001093865,505.66083707,0.00045955,120]
[406637040,1772001093923,500.0,0.00045955,30]
[406637041,1772001094161,500.0,0.00045955,30]
[406637042,1772001094381,500.0,0.00045955,30]
[406637043,1772001094609,500.0,0.00045955,30]
[406637044,1772001094857,500.0,0.00045955,30]
[406637045,1772001095080,500.0,0.00045955,30]
[406637046,1772001095307,500.0,0.00045955,30]
[406637047,1772001095561,500.0,0.00045955,30]
[406637048,1772001095789,500.0,0.00045955,30]
[406637049,1772001096044,500.0,0.00045955,30]
[406637050,1772001096273,500.0,0.00045955,30]
[406637051,1772001096502,500.0,0.00045955,30]
[406637052,1772001096735,500.0,0.00045955,30]
[406637053,1772001096959,328.43847968,0.00045955,30]
[406637056,1772001750671,156.22,6.081e-05,2]
[406637057,1772001750877,156.22,6.351e-05,2]
[406637058,1772001751083,156.22,6.621e-05,2]
[406637059,1772001751456,156.22,6.892e-05,2]
[406637060,1772001751757,156.22,7.162e-05,2]
[406637061,1772001751790,156.22,7.432e-05,2]
[406637062,1772001751863,156.22,7.702e-05,2]
[406637063,1772001752071,156.22,7.973e-05,2]
[406637071,1772002232069,-215.0,8.2e-05,2]
[406637072,1772002232079,-250.0,8.211e-05,2]
[406637073,1772002232089,-5000.0,8.221e-05,2]
[406637074,1772002232098,-156.22,8.243e-05,2]
[406637075,1772002232107,-250.0,8.261e-05,2]
[406637076,1772002232117,-300.0,8.328e-05,2]
[406637077,1772002232126,-1200.0,8.328e-05,2]
[406637078,1772002232135,-300.0,8.328e-05,2]
[406637079,1772002232145,-5000.0,8.329e-05,2]
[406637080,1772002232155,-5000.0,8.329e-05,2]
[406637081,1772002232165,-5000.0,8.329e-05,2]
[406637082,1772002232174,-156.22,8.513e-05,2]
[406637083,1772002232183,-197.766467,8.569e-05,2]
[406637085,1772002232192,-156.22,8.783e-05,2]
[406637087,1772002232202,-480.0,8.922e-05,2]
[406637090,1772002232215,-150.0,9.019e-05,2]
[406637091,1772002232224,-1491.59262823,9.02e-05,2]
[406637092,1772002232236,-446.90007245,9.02e-05,2]
[406637093,1772002232247,-3061.50729932,9.02e-05,2]
[406637094,1772002232257,-250.0,9.02e-05,2]
[406637095,1772002232266,-156.22,9.054e-05,2]
[406637096,1772002232275,-1680.0,9.161e-05,2]
[406637097,1772002232288,-420.0,9.161e-05,2]
[406637098,1772002232297,-303.0,9.225e-05,2]
[406637099,1772002232307,-1156.0,9.244e-05,2]
[406637100,1772002232316,-1000.0,9.244e-05,2]
[406637101,1772002232325,-150.99,9.245e-05,2]
[406637102,1772002232334,-150.99,9.245e-05,2]
[406637103,1772002232343,-9999.99,9.245e-05,2]
[406637104,1772002232352,-348.21,9.245e-05,2]
[406637105,1772002232361,-9999.99,9.245e-05,2]
[406637106,1772002232369,-999.99,9.245e-05,2]
[406637107,1772002232378,-1307.0,9.245e-05,2]
[406637108,1772002232387,-9999.99,9.245e-05,2]
[406637109,1772002232396,-299.99,9.245e-05,2]
[406637110,1772002232405,-9999.99,9.245e-05,2]
[406637111,1772002232416,-156.22,9.324e-05,2]
[406637112,1772002232424,-436.0,9.342e-05,2]